bitfinex-derivatives/quotes_SOLF0:USTF0_20250924
["timestamp","ask_amount","ask_price","bid_price","bid_amount"]
[1758744569462,4.77,212.83,212.69,7.39]
[1758744569758,4.77,212.81,212.69,7.39]
[1758744570260,3.51745694,212.8,212.69,7.39]
[1758744570461,8.997,212.81,212.69,7.39]
[1758744570658,3.51687059,212.8,212.69,7.39]
[1758744570858,8.997,212.81,212.69,7.39]
[1758744571059,3.51687059,212.8,212.69,7.39]
[1758744571260,8.997,212.81,212.73,4.2283]
[1758744571459,3.5185665,212.8,212.74,7.39]
[1758744571757,4.77,212.78,212.74,7.39]
[1758744572065,3.51865074,212.77,212.69,7.39]
[1758744572354,3.51865074,212.76,212.69,7.39]
[1758744572560,8.9976,212.78,212.71,4.2288]
[1758744572755,3.52079435,212.77,212.69,7.39]
[1758744572964,3.52079435,212.76,212.69,7.39]
[1758744573162,3.52079435,212.75,212.69,7.39]
[1758744573363,3.52079435,212.74,212.7,7.39]
[1758744573660,5.16449083,212.81,212.7,7.39]
[1758744573661,4.77,212.76,212.7,4.229]
[1758744573860,3.52321965,212.75,212.69,7.39]
[1758744574063,3.52321179,212.74,212.66,7.39]
[1758744574269,3.52321179,212.73,212.66,7.39]
[1758744574462,4.77,212.77,212.66,7.39]
[1758744574660,3.52495364,212.76,212.66,7.39]
[1758744574867,3.52495364,212.75,212.66,7.39]
[1758744575062,3.52495364,212.74,212.68,4.2294]
[1758744575264,4.77,212.77,212.61,103.25274244]
[1758744575265,4.77,212.77,212.65,101.5]
[1758744575463,3.52660568,212.76,212.66,7.39]
[1758744575660,3.52660568,212.75,212.66,21.45613438]
[1758744575864,3.52660568,212.74,212.67,7.39]
[1758744576069,3.52660568,212.73,212.67,7.39]
[1758744576258,4.77,212.77,212.67,7.39]
[1758744576259,4.77,212.77,212.69,4.2291]
[1758744576459,3.52859149,212.76,212.69,4.2291]
[1758744576769,3.52859149,212.75,212.69,4.2291]
[1758744577068,3.52859149,212.74,212.69,4.2291]
[1758744577263,3.52859149,212.73,212.7,7.39]
[1758744577463,3.52859149,212.72,212.69,4.2291]
[1758744577665,4.77,212.77,212.69,11.6191]
[1758744577867,3.53093094,212.76,212.69,11.6191]
[1758744578166,3.53093094,212.75,212.69,11.6191]
[1758744578367,3.53093094,212.74,212.69,4.2291]
[1758744578555,3.53093094,212.73,212.69,4.2291]
[1758744578759,3.53093094,212.72,212.71,4.2289]
[1758744578960,4.77,212.77,212.72,7.39]
[1758744579267,3.53408238,212.76,212.69,7.39]
[1758744579469,3.53408238,212.75,212.69,7.39]
[1758744579667,3.53408238,212.74,212.69,7.39]
[1758744579864,3.53408238,212.73,212.69,7.39]
[1758744580065,4.77,212.77,212.69,7.39]
[1758744580272,3.53739718,212.76,212.69,7.39]
[1758744580569,3.53739718,212.75,212.69,7.39]
[1758744580763,3.53739718,212.74,212.69,7.39]
[1758744580965,4.77,212.77,212.69,7.39]
[1758744581171,3.53877153,212.76,212.7,7.39]
[1758744581360,3.53877153,212.75,212.69,7.39]
[1758744581557,8.30877153,212.74,212.71,4.2287]
[1758744581768,3.53877153,212.73,212.71,4.2287]
[1758744581964,4.77,212.74,212.71,4.2287]
[1758744581965,3.53877153,212.72,212.71,4.2287]
[1758744582370,3.53877153,212.72,212.69,11.6192]
[1758744582568,5.16449083,212.79,212.68,7.39]
[1758744582569,3.53877153,212.71,212.68,7.39]
[1758744582763,3.53877153,212.7,212.66,13.99281199]
[1758744582966,4.77,212.73,212.65,65.8019]
[1758744582967,3.53877153,212.69,212.67,7.39]
[1758744583268,3.53877153,212.69,212.65,65.8019]
[1758744583269,4.77,212.76,212.7,4.2289]
[1758744583468,3.54395222,212.75,212.69,7.39]
[1758744583766,3.54395222,212.74,212.69,7.39]
[1758744583976,3.54395222,212.73,212.69,7.39]
[1758744584269,3.54395222,212.72,212.69,7.39]
[1758744584475,9.93449083,212.8,212.73,4.2283]
[1758744584773,3.54594925,212.79,212.71,7.39]
[1758744584974,3.54594925,212.78,212.71,7.39]
[1758744585173,3.54594925,212.77,212.71,7.39]
[1758744585374,3.54594925,212.76,212.7,65.7859]
[1758744585572,3.54594925,212.75,212.7,65.7859]
[1758744585771,3.54594925,212.74,212.7,65.7859]
[1758744585973,3.54594925,212.73,212.71,7.39]
[1758744586271,9.39129083,212.82,212.75,4.2279]
[1758744586477,8.31928515,212.81,212.75,4.2279]
[1758744586672,3.54928515,212.8,212.75,4.2279]
[1758744586873,4.77,212.78,212.75,4.2279]
[1758744587178,8.31928515,212.77,212.75,4.2279]
[1758744587370,3.54928515,212.76,212.75,4.2279]
[1758744587570,3.54928515,212.76,212.67,7.39]
[1758744587771,8.31928515,212.75,212.67,7.39]
[1758744587971,3.54928515,212.74,212.67,7.39]
[1758744588175,3.54928515,212.73,212.67,7.39]
[1758744588370,3.54928515,212.72,212.67,7.39]
[1758744588571,4.77,212.75,212.67,7.39]
[1758744588771,3.55116601,212.74,212.71,11.6188]
[1758744588970,3.55116601,212.73,212.71,11.6188]
[1758744589169,3.55116601,212.72,212.71,11.6188]
[1758744589378,3.55116601,212.72,212.71,7.39]
[1758744589679,3.55116601,212.72,212.69,11.6192]
[1758744589878,3.55116601,212.71,212.69,11.6192]
[1758744590074,3.55116601,212.7,212.69,11.6192]
[1758744590284,4.77,212.75,212.71,11.6188]
[1758744590482,8.32162173,212.74,212.71,11.6188]
[1758744590783,3.55162173,212.73,212.67,116.83]
[1758744590973,8.32162173,212.72,212.68,7.39]
[1758744591172,3.55162173,212.71,212.67,109.44]
[1758744591371,3.55162173,212.7,212.67,109.44]
[1758744591572,4.77,212.72,212.67,109.44]
[1758744591772,3.55112698,212.71,212.68,7.39]
[1758744591978,4.77,212.72,212.68,7.39]
[1758744592182,3.55112418,212.71,212.69,4.2292]
[1758744592481,3.55112418,212.7,212.68,7.39]
[1758744592678,4.77,212.72,212.68,7.39]
[1758744592883,8.3207913,212.71,212.68,7.39]
[1758744593176,3.5507913,212.7,212.68,7.39]
[1758744593381,4.77,212.71,212.68,7.39]
[1758744593581,3.55015793,212.7,212.68,7.39]
[1758744593780,3.55015793,212.69,212.68,7.39]
[1758744594579,4.77,212.71,212.68,7.39]
[1758744594779,3.54957226,212.7,212.68,7.39]
[1758744594980,4.77,212.71,212.68,7.39]
[1758744595179,3.54957226,212.7,212.68,7.39]
[1758744595487,3.54957226,212.69,212.66,7.97]
[1758744595684,8.31957226,212.68,212.65,4.23]
[1758744595883,3.54957226,212.67,212.63,4.2304]
[1758744596079,4.77,212.68,212.64,7.97]
[1758744596385,3.54771728,212.67,212.64,7.97]
[1758744596586,4.77,212.68,212.64,7.97]
[1758744596788,3.54771454,212.67,212.64,7.97]
[1758744596985,4.77,212.68,212.64,7.97]
[1758744597186,4.77,212.68,212.65,7.97]
[1758744597187,3.5477107,212.67,212.65,7.97]
[1758744597387,4.77,212.68,212.65,7.97]
[1758744597592,3.54707133,212.67,212.65,7.97]
[1758744597788,4.77,212.68,212.65,7.97]
[1758744597988,3.54707183,212.67,212.65,7.97]
[1758744598189,4.77,212.68,212.65,7.97]
[1758744598388,3.5462431,212.67,212.65,7.97]
[1758744598688,4.77,212.68,212.65,7.97]
[1758744598886,3.5462431,212.67,212.65,7.97]
[1758744599086,4.77,212.68,212.65,7.97]
[1758744600486,4.77,212.68,212.65,12.1999]
[1758744600688,4.77,212.73,212.66,7.98]
[1758744600883,3.54560229,212.72,212.66,7.98]
[1758744601089,3.54560229,212.71,212.67,7.98]
[1758744601295,3.54560229,212.7,212.64,7.98]
[1758744601488,4.77,212.76,212.68,7.98]
[1758744601688,3.54505732,212.75,212.68,7.98]
[1758744601995,3.54505732,212.74,212.68,7.98]
[1758744602194,4.77,212.72,212.7,4.2289]
[1758744602491,3.54505732,212.71,212.7,12.2089]
[1758744603193,3.54505732,212.71,212.7,4.2289]
[1758744604594,3.54505732,212.71,212.7,12.2089]
[1758744604796,4.77,212.75,212.7,12.2089]
[1758744605096,3.54510671,212.74,212.71,7.98]
[1758744605297,3.54510671,212.73,212.71,7.98]
[1758744605598,3.54510671,212.72,212.71,7.98]
[1758744605794,3.54510671,212.74,212.71,7.98]
[1758744606005,3.54510671,212.73,212.71,7.98]
[1758744606297,3.54510671,212.72,212.71,7.98]
[1758744606497,4.77,212.74,212.71,7.98]
[1758744606697,3.54510671,212.73,212.71,7.98]
[1758744607496,8.31510671,212.72,212.7,4.2289]
[1758744607806,4.77,212.7,212.67,12.2096]
[1758744608096,3.54510671,212.69,212.67,12.2096]
[1758744608602,8.31510671,212.69,212.67,4.2296]
[1758744608799,3.54510671,212.68,212.67,4.2296]
[1758744609297,3.54510671,212.68,212.65,4.23]
[1758744609502,8.31510671,212.67,212.61,7.98]
[1758744609701,3.54510671,212.66,212.6,7.98]
[1758744609896,4.77,212.68,212.6,7.98]
[1758744610097,3.54591373,212.67,212.6,7.98]
[1758744610297,3.54591373,212.66,212.6,7.98]
[1758744610497,4.77,212.68,212.6,7.98]
[1758744610700,3.54586071,212.67,212.6,7.98]
[1758744611001,3.54586071,212.66,212.6,7.98]
[1758744611201,4.77,212.68,212.62,4.2306]
[1758744611403,3.5458555,212.67,212.62,4.2306]
[1758744611606,8.3158555,212.66,212.62,12.2106]
[1758744611802,4.77,212.66,212.62,12.2106]
[1758744612615,4.77,212.72,212.6,4.231]
[1758744612800,3.54608093,212.71,212.6,4.231]
[1758744612995,4.77,212.69,212.6,4.231]
[1758744613200,3.54608093,212.68,212.6,4.231]
[1758744613395,8.31608093,212.67,212.6,4.231]
[1758744613594,3.54608093,212.66,212.58,7.98]
[1758744613803,3.54608093,212.65,212.58,7.98]
[1758744614100,3.54608093,212.64,212.58,7.98]
[1758744614404,4.77,212.67,212.58,7.98]
[1758744614606,3.5464869,212.66,212.6,4.231]
[1758744614806,8.3164869,212.65,212.61,7.98]
[1758744614998,3.5464869,212.64,212.61,7.98]
[1758744615204,4.77,212.65,212.6,4.231]
[1758744615507,3.53640094,212.64,212.61,4.2308]
[1758744615702,4.77,212.65,212.62,7.98]
[1758744615902,3.53640143,212.64,212.62,7.98]
[1758744616098,4.77,212.7,212.59,7.98]
[1758744616305,3.53650137,212.69,212.61,7.98]
[1758744616503,3.53650137,212.68,212.61,7.98]
[1758744616701,3.53650137,212.67,212.61,7.98]
[1758744616904,3.53650137,212.66,212.61,7.98]
[1758744617103,4.77,212.7,212.61,7.98]
[1758744617404,4.77,212.68,212.65,7.98]
[1758744617706,3.53654445,212.67,212.65,7.98]
[1758744617902,3.53654445,212.66,212.65,7.98]
[1758744619806,3.53654445,212.66,212.64,4.2301]
[1758744620002,4.77,212.7,212.64,4.2301]
[1758744620203,4.77,212.68,212.64,4.2301]
[1758744620400,8.30812297,212.67,212.64,4.2301]
[1758744620604,3.53812297,212.66,212.64,4.2301]
[1758744620806,4.77,212.67,212.64,4.2301]
[1758744621110,3.53806117,212.66,212.64,4.2301]
[1758744621413,4.77,212.67,212.64,4.2301]
[1758744621605,8.30794552,212.66,212.62,7.98]
[1758744621806,8.30794552,212.65,212.59,7.98]
[1758744622001,4.77,212.63,212.59,7.98]
[1758744622412,3.53744593,212.62,212.55,97.78]
[1758744622613,4.77,212.63,212.57,12.2116]
[1758744622911,8.30822539,212.62,212.58,7.98]
[1758744623112,4.77,212.62,212.58,7.98]
[1758744623907,4.78,212.64,212.58,12.2113]
[1758744624110,3.53846782,212.63,212.58,4.2313]
[1758744624307,3.53846782,212.62,212.58,4.2313]
[1758744624503,4.78,212.64,212.58,12.0513]
[1758744624703,3.53810847,212.63,212.58,4.2313]
[1758744624908,3.53810847,212.62,212.59,7.82]
[1758744625104,4.78,212.64,212.58,12.0513]
[1758744625314,3.5377098,212.63,212.58,12.0513]
[1758744625515,3.5377098,212.62,212.59,7.82]
[1758744625710,4.78,212.64,212.58,12.0513]
[1758744626015,3.53784524,212.63,212.6,7.82]
[1758744626204,3.53784524,212.62,212.6,7.82]
[1758744626407,4.78,212.69,212.6,7.82]
[1758744626608,3.53761442,212.68,212.6,7.82]
[1758744626808,4.78,212.66,212.59,4.2311]
[1758744627009,3.53761442,212.65,212.59,4.2311]
[1758744627212,4.78,212.63,212.59,4.2311]
[1758744627410,4.78,212.61,212.57,7.82]
[1758744627621,3.53761442,212.6,212.52,122.8]
[1758744627817,3.53761442,212.59,212.52,136.95440457]
[1758744628012,3.53761442,212.58,212.52,136.95440457]
[1758744628317,4.78,212.61,212.52,136.95440457]
[1758744628514,3.53564615,212.6,212.53,7.82]
[1758744628717,3.53564615,212.59,212.53,7.82]
[1758744628905,3.53564615,212.58,212.53,7.82]
[1758744629107,4.78,212.61,212.53,7.82]
[1758744629417,3.53496097,212.6,212.55,4.232]
[1758744629714,4.78,212.58,212.55,4.232]
[1758744629904,4.78,212.58,212.55,12.052]
[1758744630307,4.2306,212.63,212.55,4.232]
[1758744630511,8.31413703,212.62,212.54,7.82]
[1758744630712,3.53413703,212.61,212.54,7.82]
[1758744630907,3.53413703,212.6,212.54,7.82]
[1758744631107,3.53413703,212.59,212.53,65.8376]
[1758744631316,3.53413703,212.58,212.53,65.8376]
[1758744631513,4.78,212.62,212.54,7.82]
[1758744631709,3.5339612,212.61,212.54,7.82]
[1758744632020,3.5339612,212.6,212.54,7.82]
[1758744632219,3.5339612,212.59,212.53,65.8376]
[1758744632520,4.78,212.62,212.53,7.82]
[1758744632722,3.53426803,212.61,212.53,7.82]
[1758744632921,3.53426803,212.6,212.57,12.0515]
[1758744633116,3.53426803,212.59,212.57,12.0515]
[1758744633315,4.78,212.63,212.57,12.0515]
[1758744633615,4.78,212.61,212.57,12.0515]
[1758744633915,3.53443973,212.6,212.57,12.0515]
[1758744635219,4.78,212.59,212.57,4.2315]
[1758744636422,4.78,212.66,212.58,4.2313]
[1758744636718,3.53387186,212.65,212.58,4.2313]
[1758744636918,8.31387186,212.64,212.58,4.2313]
[1758744637123,3.53387186,212.63,212.58,4.2313]
[1758744637325,4.78,212.61,212.58,4.2313]
[1758744637526,3.53387186,212.6,212.57,7.82]
[1758744637922,3.53387186,212.59,212.57,7.82]
[1758744638128,4.78,212.62,212.59,4.2312]
[1758744638328,3.53412828,212.61,212.59,4.2312]
[1758744638528,3.53412828,212.6,212.59,4.2312]
[1758744638823,3.53412828,212.6,212.59,12.0512]
[1758744642124,4.78,212.66,212.59,12.0512]
[1758744642326,3.53451463,212.65,212.63,12.0504]
[1758744642628,3.53451463,212.64,212.63,12.0504]
[1758744643329,3.53451463,212.64,212.51,65.8449]
[1758744643634,8.31451463,212.63,212.53,7.82]
[1758744643834,3.53451463,212.62,212.53,7.82]
[1758744644128,3.53451463,212.61,212.53,7.82]
[1758744644337,3.53451463,212.6,212.53,7.82]
[1758744644528,3.53451463,212.59,212.53,7.82]
[1758744644728,4.78,212.63,212.53,7.82]
[1758744645025,3.53424531,212.62,212.57,4.2316]
[1758744645228,4.78,212.6,212.57,4.2316]
[1758744645433,8.31424531,212.59,212.57,4.2316]
[1758744645633,4.78,212.59,212.57,4.2316]
[1758744646128,4.2306,212.63,212.57,4.2316]
[1758744646329,4.78,212.61,212.57,12.0516]
[1758744646530,3.53097896,212.6,212.57,12.0516]
[1758744646934,3.53097896,212.59,212.57,12.0516]
[1758744652138,3.53097896,212.59,212.57,4.2316]
[1758744652337,3.53097896,212.58,212.57,12.0516]
[1758744652730,3.53097896,212.59,212.57,7.82]
[1758744652939,3.53097896,212.58,212.5,115.0]
[1758744653137,3.53097896,212.57,212.51,7.82]
[1758744653334,3.53097896,212.56,212.5,115.0]
[1758744653542,3.53097896,212.55,212.51,7.82]
[1758744653840,4.78,212.58,212.51,7.82]
[1758744654040,3.53811919,212.57,212.51,7.82]
[1758744654235,3.53811919,212.56,212.54,11.5521]
[1758744654437,3.53811919,212.55,212.54,11.5521]
[1758744654638,3.53811919,212.57,212.54,11.5521]
[1758744654938,3.53811919,212.56,212.54,11.5521]
[1758744655135,3.53811919,212.55,212.54,11.5521]
[1758744655342,3.53811919,212.57,212.54,11.5521]
[1758744655541,3.53811919,212.56,212.54,11.5521]
[1758744655741,3.53811919,212.55,212.54,11.5521]
[1758744655942,3.53811919,212.57,212.54,11.5521]
[1758744656142,3.53811919,212.56,212.54,11.5521]
[1758744656440,3.53811919,212.55,212.54,11.5521]
[1758744656638,3.53811919,212.57,212.54,11.5521]
[1758744656843,3.53811919,212.56,212.54,11.5521]
[1758744657043,3.53811919,212.55,212.54,11.5521]
[1758744657240,3.53811919,212.58,212.54,11.5521]
[1758744657442,8.32811919,212.57,212.54,11.5521]
[1758744657742,3.53811919,212.56,212.54,11.5521]
[1758744658039,3.53811919,212.55,212.54,11.5521]
[1758744658436,3.53811919,212.56,212.54,11.5521]
[1758744658644,3.53811919,212.55,212.54,11.5521]
[1758744658943,3.53971084,212.56,212.55,7.32]
[1758744659338,3.53971084,212.56,212.54,4.2321]
[1758744659541,3.53971084,212.55,212.54,11.5521]
[1758744659942,3.53971084,212.56,212.54,11.5521]
[1758744660141,3.53971084,212.55,212.54,11.5521]
[1758744660344,3.53971084,212.56,212.54,11.5521]
[1758744660644,4.75,212.62,212.57,4.2316]
[1758744660849,3.54035869,212.61,212.58,7.34]
[1758744661050,3.54035869,212.6,212.54,7.34]
[1758744661251,3.54035869,212.59,212.58,11.5714]
[1758744668548,5.869e-05,212.59,212.58,11.5714]
[1758744668747,5.16449083,212.66,212.65,7.34]
[1758744668948,5.16449083,212.67,212.6,65.8168]
[1758744669150,5.16449083,212.67,212.65,4.2299]
[1758744669450,5.16449083,212.69,212.66,7.34]
[1758744669644,5.16449083,212.69,212.62,7.34]
[1758744670047,5.16449083,212.69,212.67,11.5696]
[1758744670249,5.16449083,212.7,212.66,7.34]
[1758744670454,5.16449083,212.74,212.68,7.34]
[1758744670650,5.16449083,212.75,212.68,7.34]
[1758744670845,9.91449083,212.76,212.72,4.2285]
[1758744671050,9.91449083,212.76,212.72,11.5685]
[1758744671252,4.75,212.76,212.72,11.5685]
[1758744672457,5.16449083,212.77,212.72,11.5685]
[1758744672458,4.75,212.77,212.73,7.34]
[1758744672656,5.16449083,212.78,212.71,7.34]
[1758744672954,5.16449083,212.78,212.73,7.34]
[1758744673153,9.91449083,212.8,212.73,7.34]
[1758744673457,4.75,212.8,212.73,7.34]
[1758744673652,4.75,212.8,212.76,11.5677]
[1758744674048,5.16449083,212.81,212.74,7.34]
[1758744674253,4.75,212.83,212.78,4.2275]
[1758744674456,9.91449083,212.84,212.78,4.2275]
[1758744675348,4.75,212.84,212.78,4.2275]
[1758744675959,244.9426983,212.85,212.76,7.34]
[1758744675960,249.1687983,212.85,212.76,7.34]
[1758744676154,4.75,212.84,212.76,7.34]
[1758744677260,4.75,212.84,212.76,11.5677]
[1758744680559,4.75,212.84,212.76,7.34]
[1758744680764,3.50919599,212.83,212.76,7.34]
[1758744680963,3.50919599,212.82,212.76,7.34]
[1758744681163,3.50919599,212.81,212.74,7.34]
[1758744681363,3.50919599,212.8,212.74,7.34]
[1758744681565,3.50919599,212.79,212.74,7.34]
[1758744681861,4.75,212.8,212.74,7.34]
[1758744682160,8.25781679,212.79,212.73,4.2283]
[1758744682366,8.25781679,212.78,212.74,7.34]
[1758744682565,3.50781679,212.77,212.74,7.34]
[1758744682864,4.75,212.78,212.73,4.2283]
[1758744683067,310.6832983,212.85,212.74,7.34]
[1758744683068,4.75,212.82,212.74,7.34]
[1758744683368,3.50747634,212.81,212.74,7.34]
[1758744683557,8.25747634,212.8,212.74,7.34]
[1758744683761,8.28747634,212.79,212.73,12.2383]
[1758744683961,3.50747634,212.78,212.73,4.2283]
[1758744684166,3.50747634,212.77,212.74,8.01]
[1758744684362,4.78,212.79,212.74,8.01]
[1758744684570,3.50594779,212.78,212.73,4.2283]
[1758744684763,3.50594779,212.77,212.73,4.2283]
[1758744685063,4.78,212.79,212.73,12.2383]
[1758744685263,3.50594779,212.78,212.73,4.2283]
[1758744685464,3.50594779,212.77,212.71,8.01]
[1758744685768,4.78,212.79,212.71,8.01]
[1758744685969,3.50531429,212.78,212.71,8.01]
[1758744686165,3.50531429,212.77,212.71,8.01]
[1758744686367,4.78,212.79,212.71,8.01]
[1758744686568,3.50480204,212.78,212.71,8.01]
[1758744686770,3.50480204,212.77,212.71,8.01]
[1758744686966,4.78,212.79,212.71,8.01]
[1758744687167,3.50480204,212.78,212.72,4.2285]
[1758744687371,3.50480204,212.77,212.73,8.01]
[1758744687568,9.0074,212.79,212.73,8.01]
[1758744687767,3.50420507,212.78,212.73,8.01]
[1758744687971,4.78,212.76,212.7,4.2291]
[1758744688276,4.78,212.74,212.7,8.01]
[1758744688469,44.36,212.78,212.7,8.01]
[1758744688771,4.2283,212.74,212.7,8.01]
[1758744688978,4.78,212.73,212.7,8.01]
[1758744689574,4.78,212.73,212.69,8.01]
[1758744689877,3.50354259,212.72,212.69,8.01]
[1758744690077,4.78,212.73,212.69,8.01]
[1758744690376,3.50354211,212.72,212.69,8.01]
[1758744690576,4.78,212.73,212.69,8.01]
[1758744690778,3.50359584,212.72,212.69,8.01]
[1758744690978,4.78,212.73,212.69,8.01]
[1758744691178,3.50359584,212.72,212.69,8.01]
[1758744691384,4.2283,212.74,212.69,8.01]
[1758744691691,4.78,212.72,212.69,8.01]
[1758744691880,3.50395434,212.71,212.69,8.01]
[1758744692074,4.78,212.7,212.67,8.01]
[1758744695284,3.50522906,212.69,212.67,8.01]
[1758744695586,4.78,212.7,212.67,8.01]
[1758744695888,3.50522906,212.69,212.67,8.01]
[1758744696076,4.78,212.7,212.67,8.01]
[1758744696276,3.50522906,212.69,212.67,8.01]
[1758744696585,4.78,212.7,212.67,8.01]
[1758744696787,3.50590061,212.69,212.67,8.01]
[1758744696988,4.78,212.7,212.67,8.01]
[1758744697285,3.50582305,212.69,212.66,4.2298]
[1758744697485,4.78,212.7,212.66,4.2298]
[1758744697685,3.50655012,212.69,212.66,4.2298]
[1758744697885,9.0087,212.73,212.67,8.01]
[1758744698082,3.50655388,212.72,212.67,8.01]
[1758744698284,3.50655388,212.71,212.66,8.01]
[1758744698490,9.0081,212.76,212.66,8.01]
[1758744698790,3.50747847,212.75,212.66,8.01]
[1758744698984,9.0081,212.76,212.66,8.01]
[1758744698985,3.50747847,212.74,212.66,8.01]
[1758744699186,3.50747847,212.73,212.69,4.2291]
[1758744699393,3.50747847,212.73,212.66,8.01]
[1758744699394,4.78,212.76,212.66,8.01]
[1758744699593,3.50839347,212.75,212.66,8.01]
[1758744699787,3.50839347,212.74,212.66,8.01]
[1758744699983,3.50839347,212.73,212.66,8.01]
[1758744700192,3.5089148,212.72,212.66,8.01]
[1758744700390,4.78,212.76,212.66,8.01]
[1758744700592,8.28927891,212.75,212.71,8.01]
[1758744700792,3.50927891,212.74,212.71,8.01]
[1758744701894,3.50927891,212.74,212.7,4.2289]
[1758744702283,3.50927891,212.74,212.71,8.01]
[1758744702786,3.50927891,212.74,212.7,4.2289]
[1758744703294,3.50927891,212.74,212.71,8.01]
[1758744703794,3.50927891,212.74,212.7,4.2289]
[1758744704494,3.50927891,212.74,212.71,8.01]
[1758744704796,3.50927891,212.74,212.7,4.2289]
[1758744704997,3.50927891,212.74,212.71,8.01]
[1758744705693,3.50927891,212.74,212.7,4.2289]
[1758744706090,3.50927891,212.74,212.71,8.01]
[1758744706292,3.50927891,212.73,212.71,8.01]
[1758744706493,3.50927891,212.72,212.71,8.01]
[1758744706985,8.28927891,212.75,212.71,8.01]
[1758744707193,3.50927891,212.74,212.7,4.2289]
[1758744707396,3.50927891,212.73,212.71,8.01]
[1758744707597,3.50927891,212.72,212.71,8.01]
[1758744707792,3.50927891,212.74,212.71,8.01]
[1758744707992,3.50927891,212.73,212.71,8.01]
[1758744708188,3.50927891,212.72,212.71,8.01]
[1758744708394,8.28927891,212.74,212.71,8.01]
[1758744708700,3.50927891,212.73,212.71,8.01]
[1758744708890,3.50927891,212.72,212.71,8.01]
[1758744709089,3.50927891,212.73,212.71,8.01]
[1758744709289,3.50927891,212.72,212.68,4.2294]
[1758744709491,8.28927891,212.71,212.68,12.2394]
[1758744709692,3.50927891,212.7,212.69,8.01]
[1758744709993,3.50927891,212.73,212.69,4.2292]
[1758744710195,3.50927891,212.72,212.69,4.2292]
[1758744710393,3.50927891,212.71,212.7,8.01]
[1758744710599,3.50927891,212.74,212.69,4.2292]
[1758744710898,3.50927891,212.73,212.7,8.01]
[1758744711099,3.50927891,212.72,212.7,8.01]
[1758744711300,3.50927891,212.71,212.7,8.01]
[1758744713098,3.52536102,212.71,212.7,8.01]
[1758744719598,3.52536102,212.71,212.68,7.36]
[1758744719798,3.52536102,212.7,212.68,7.36]
[1758744720002,3.52536102,212.69,212.68,7.36]
[1758744720207,3.52536102,212.69,212.67,4.2296]
[1758744720402,3.52536102,212.68,212.66,7.77]
[1758744720708,3.52536102,212.67,212.62,7.77]
[1758744720911,3.52536102,212.66,212.59,7.77]
[1758744721105,3.52536102,212.65,212.6,4.2309]
[1758744721310,3.52536102,212.64,212.59,7.77]
[1758744721505,4.77,212.69,212.59,7.77]
[1758744721704,3.5297748,212.68,212.59,7.77]
[1758744721904,3.5297748,212.67,212.59,7.77]
[1758744722105,3.5297748,212.66,212.6,7.77]
[1758744722301,3.5297748,212.65,212.62,4.2305]
[1758744722506,3.5297748,212.64,212.63,7.77]
[1758744722906,3.5297748,212.64,212.57,457.26]
[1758744723107,4.77,212.62,212.6,7.77]
[1758744723308,5.16449083,212.7,212.6,7.77]
[1758744723503,4.77,212.68,212.6,7.77]
[1758744723711,4.77,212.64,212.58,4.2315]
[1758744723907,3.53022077,212.63,212.57,114.86]
[1758744724115,4.77,212.61,212.57,122.63]
[1758744724512,4.77,212.61,212.58,7.77]
[1758744725409,3.52998507,212.6,212.58,7.77]